Cogmind - Beta 12 @@@ ROGUE MODE // 2023.11.11 @ 23:02:24 Player: Gilotine Result: Destroyed by G-47 Trooper with Particle Gun Performance ------------- Evolutions (2) 1000 Regions Visited (3) 600 Robots Destroyed (61) 305 Value Destroyed (1901) 1901 Prototype IDs (3) 60 Alien Tech Used (0) 0 Bonus (157) 157 TOTAL SCORE: 4023 Bonus ------- High Alert Combat Kills 157 Cogmind --------- Core Integrity 0/550 Matter 229/300 Energy 35/100 System Corruption 0% Temperature Cool (9) Movement Treading (170) Location -8/Materials Parts ------- > --- POWER (2) -------- (None) > --- PROPULSION (3) --- Armored Treads > --- UTILITY (3) ------ (None) > --- WEAPON (3) ------- (None) > --- INVENTORY (5) ---- Improved Heat Sink Compact Battery (0) Peak State ------------ > --- POWER ------------ Light Ion Engine Reinforced Ion Engine > --- PROPULSION ------- Armored Wheel Armored Wheel Armored Wheel > --- UTILITY ---------- Improved Heat Sink Small Storage Unit Compact Battery > --- WEAPON ----------- Heavy EM Shotgun Field Laser Flak Cannon > --- INVENTORY -------- Improved Ion Engine Armored Wheel Heat Sink Minigun Flak Cannon Flak Cannon [Rating: 27] Favorites ----------- Power Light Ion Engine Engine Light Ion Engine Propulsion Improved Aluminum Leg Treads Armored Treads Leg Improved Aluminum Leg Wheel Armored Wheel Utility Small Storage Unit Device Heat Sink Storage Small Storage Unit Protection Utility Shielding Weapon Flak Cannon Energy Gun Small Laser Energy Cannon Light EM Pulse Cannon Ballistic Gun Light Assault Rifle Ballistic Cannon Flak Cannon Build | -11 -10 -9 -8 ------- Run | Jun Mat Mat Mat Slots Evolved 4 | . . 2 2 Power 1 | . . 1 . Propulsion 1 | . . . 1 Utility 1 | . . . 1 Weapon 1 | . . 1 . Parts Attached 58 | 7 8 21 22 Power 8 | 1 . 4 3 Engine 8 | 1 . 4 3 Core . | . . . . Reactor . | . . . . Propulsion 12 | 3 3 3 3 Treads 1 | . . . 1 Leg 6 | 2 3 1 . Wheel 5 | 1 . 2 2 Hover . | . . . . Flight . | . . . . Utility 11 | 1 3 2 5 Device 4 | . 1 1 2 Storage 5 | 1 1 1 2 Processor . | . . . . Hackware . | . . . . Protection 2 | . 1 . 1 Artifact . | . . . . Weapon 27 | 2 2 12 11 Energy Gun 8 | 1 . 3 4 Energy Cannon 10 | . 2 5 3 Ballistic Gun 3 | 1 . 1 1 Ballistic Cannon 6 | . . 3 3 Launcher . | . . . . Special Weapon . | . . . . Impact Weapon . | . . . . Slashing Weapon . | . . . . Piercing Weapon . | . . . . Special Melee Weapon . | . . . . Unidentified Prototypes 1 | . . . 1 Parts Lost 18 | . . . 18 Power 4 | . . . 4 Propulsion 4 | . . . 4 Utility 3 | . . . 3 Weapon 7 | . . . 7 Highest Loss Streak 15 | . . . 15 To Critical Strikes . | . . . . Average Slot Usage (%) 92 | . 92 96 85 Engine 15 | . 14 19 13 Leg 17 | . 28 20 . Wheel 6 | . . 1 22 Device 6 | . 4 7 8 Storage 12 | . 14 11 12 Protection 2 | . 3 3 1 Energy Gun 8 | . 9 7 9 Energy Cannon 8 | . 7 12 1 Ballistic Gun 4 | . 9 3 1 Ballistic Cannon 7 | . . 9 13 Naked Turns . | . . . . Heaviest Build 58 | 13 54 58 37 Greatest Support 36 | 16 26 26 36 Greatest Overweight (x) 5 | 1 2 3 5 Average Overweight (x) . | . . . . Largest Inventory Capacity 20 | 8 20 20 8 Average Capacity 9 | 6 9 10 7 Most Carried 9 | 5 7 9 7 Average Carried 4 | 1 3 5 5 Final Capacity 20 | 8 20 8 5 Final Carried 7 | 1 6 7 2 Class Distribution -------------------- 46% | Mutant 37% | Gunner 16% | Tank Dominant Class ---------------- Mutant | -10/Materials Gunner | -9/Materials Gunner | -8/Materials Resources | -11 -10 -9 -8 ----------- Run | Jun Mat Mat Mat Matter Collected 1441 | 215 120 433 673 Remotely . | . . . . Salvage Created 2117 | . 234 808 1075 Parts 119 | . 21 45 53 Haulers Intercepted 1 | . . . 1 Recyclers Shooed 2 | . . 1 1 Parts Field Recycled . | . . . . Retrieved Matter . | . . . . Parts Self-Destructed . | . . . . Prevented . | . . . . Kills | -11 -10 -9 -8 ------- Run | Jun Mat Mat Mat Combat Hostiles Destroyed 56 | . 9 19 28 Guns 26 | . 7 2 17 Cannons 26 | . . 16 10 AOE 3 | . 2 . 1 Classes Destroyed 11 | . 3 3 5 Worker 1 | . 1 . . Hauler 1 | . . . 1 Recycler 1 | . . . 1 Watcher 2 | . . 1 1 Swarmer 16 | . 6 . 10 Grunt 27 | . 3 14 10 Brawler 2 | . . 1 1 Duelist 2 | . . . 2 Sentry 7 | . . 4 3 Specialist 1 | . . . 1 Heavy 1 | . . . 1 Best Kill Streak 9 | . 4 4 9 Combat Bots Only 9 | . 3 4 9 Max Kills in Single Turn 2 | . 2 1 2 Gunslinging 1 | . 1 . . Exploded 2 | . 2 . 1 Melee . | . . . . Uniques/NPCs Destroyed . | . . . . Combat | -11 -10 -9 -8 -------- Run | Jun Mat Mat Mat Damage Taken 2993 | 1 156 415 2421 Core 643 | 1 44 43 555 Absorbed by Shields . | . . . . Core Remaining (%) 90 | 99 82 89 . Volleys Fired 136 | . 14 41 81 Largest 3 | . 2 3 3 Hottest 180 | . 60 180 172 Shots Fired 332 | . 28 119 185 Gun 158 | . 28 34 96 Cannon 174 | . . 85 89 Launcher . | . . . . Special . | . . . . Kinetic 169 | . 14 55 100 Thermal 95 | . . 36 59 Explosive . | . . . . Electromagnetic 68 | . 14 28 26 Robot Hit Streak 12 | . 7 12 6 Robot Miss Streak 20 | . 2 9 20 Penetration Max . | . . . . Secondary Targets 3 | . 2 . 1 Max Gunslinging Chain 1 | . 1 . 1 Shots Hit Robots 212 | . 17 76 119 Core Hits 148 | 1 13 55 79 Critical Kills . | . . . . Critical Parts Destroyed . | . . . . Critical Strikes . | . . . . Melee Attacks . | . . . . Impact . | . . . . Slashing . | . . . . Piercing . | . . . . Sneak Attacks . | . . . . Combat Hostiles . | . . . . Follow-up Attacks . | . . . . Damage Inflicted 3828 | 3 264 1337 2224 Guns 1345 | . 174 123 1048 Cannons 2296 | . . 1214 1082 Explosions 184 | . 90 . 94 Melee . | . . . . Ramming 3 | 3 . . . Kinetic 1849 | . 56 624 1169 Thermal 1048 | . 90 261 697 Explosive . | . . . . Electromagnetic 928 | . 118 452 358 Impact . | . . . . Slashing . | . . . . Piercing . | . . . . Highest Corruption . | . . . . Average Corruption . | . . . . Corruption Purged . | . . . . Corruption Blocked . | . . . . Overload Shots . | . . . . Overflow Damage 4 | . . . 4 Projectiles 4 | . . . 4 Explosions . | . . . . Melee . | . . . . Knockbacks 19 | . . 2 17 Impact . | . . . . Kinetic 18 | . . 2 16 Secondary 1 | . . . 1 Self-Inflicted Damage 1 | 1 . . . Shots . | . . . . Rammed 1 | 1 . . . Targets Rammed 1 | 1 . . . Kicked . | . . . . Crushed . | . . . . Highest Temperature 425 | . 58 399 425 Average Temperature 116 | . 22 144 107 Received Heat Transfer 1047 | . 18 156 873 Effects 8 | . . 5 3 Shutdowns 3 | . . 1 2 Energy Bleed 2 | . . 1 1 Interference 2 | . . 2 . Short Circuit 1 | . . 1 . Siege Activations . | . . . . Robots Corrupted 1 | . . 1 . Combat Hostiles 1 | . . 1 . Parts Fried 6 | . . 5 1 Impact Corruptions . | . . . . Robots Melted . | . . . . Combat Hostiles . | . . . . Parts Melted 2 | . . . 2 Heat Transferred 1768 | . 50 508 1210 Parts Sabotaged . | . . . . Parts Stolen . | . . . . Parts Stripped . | . . . . Power Chain Reactions 4 | . 2 . 2 Missiles Intercepted . | . . . . Alert | -11 -10 -9 -8 ------- Run | Jun Mat Mat Mat Peak Influence 639 | . 168 373 639 Initial 96 | . . 29 96 Average 162 | . 64 133 361 Maximum Alert Level 2 | . . 1 2 Low Security (%) 67 | 100 100 67 21 Level 1 20 | . . 32 30 Level 2 12 | . . . 48 Level 3 . | . . . . Level 4 . | . . . . Level 5 . | . . . . High Security . | . . . . Max Security . | . . . . Squads Dispatched 9 | . 1 2 6 Investigation 2 | . 1 1 . Extermination . | . . . . Reinforcement 4 | . . 1 3 Assault . | . . . . Garrison 3 | . . . 3 Intercept . | . . . . Searches Triggered . | . . . . Construction Impeded . | . . . . Haulers Reinforced . | . . . . Active Scanning Responses . | . . . . Cargo Convoy Interrupts . | . . . . Stealth | -11 -10 -9 -8 --------- Run | Jun Mat Mat Mat Distress Signals 3 | . . 2 1 Communications Jammed . | . . . . Distress Signals . | . . . . Times Spotted 71 | . 10 27 34 Peak Tracking Total 5 | . 3 5 5 Tactical Retreats 1 | . . . 1 Traps | -11 -10 -9 -8 ------- Run | Jun Mat Mat Mat Traps Triggered 5 | . 2 3 . Indirectly . | . . . . Trap Hack Attempts . | . . . . Triggered . | . . . . Disarmed . | . . . . Reprogrammed . | . . . . Reused . | . . . . Traps Extracted . | . . . . Installed . | . . . . Triggered . | . . . . Machines | -11 -10 -9 -8 ---------- Run | Jun Mat Mat Mat Machines Disabled . | . . . . Max in Single Turn . | . . . . Machines Repaired . | . . . . Machines Sabotaged . | . . . . Overloaded Fab Kills . | . . . . Hacking | -11 -10 -9 -8 --------- Run | Jun Mat Mat Mat Machines Accessed 9 | . 3 4 2 Terminals 5 | . 1 3 1 Fabricators . | . . . . Repair Stations . | . . . . Recycling Units 3 | . 2 1 . Scanalyzers . | . . . . Garrison Access 1 | . . . 1 Total Hacks 9 | . 3 4 2 Successful 4 | . 1 3 . Failed 5 | . 2 1 2 Catastrophic . | . . . . Database Lockouts . | . . . . Manual . | . . . . Terminals 5 | . 1 3 1 Fabricators . | . . . . Repair Stations . | . . . . Recycling Units 3 | . 2 1 . Scanalyzers . | . . . . Garrison Access 1 | . . . 1 Terminal Hacks 4 | . 1 3 . Record 2 | . . 2 . Prototype ID Bank 1 | . . 1 . Alert Level 1 | . 1 . . Fabricator Hacks . | . . . . Repair Station Hacks . | . . . . Recycling Unit Hacks . | . . . . Scanalyzer . | . . . . Garrison Access Hacks . | . . . . Unauthorized Hacks . | . . . . Terminals . | . . . . Fabricators . | . . . . Repair Stations . | . . . . Recycling Units . | . . . . Scanalyzers . | . . . . Garrison Access . | . . . . Data Cores Recovered . | . . . . Used . | . . . . Hacking Detections 3 | . 1 1 1 Full Trace Events . | . . . . Feedback Events . | . . . . Feedback Blocked . | . . . . Robot Schematics Acquired . | . . . . Robots Built . | . . . . Authchips . | . . . . Time . | . . . . Total Robot Build Rating . | . . . . Part Schematics Acquired . | . . . . Parts Built . | . . . . Authchips . | . . . . Time . | . . . . Total Part Build Rating . | . . . . Parts Repaired . | . . . . Time . | . . . . Parts Recycled . | . . . . Recycled Matter . | . . . . Retrieved Matter . | . . . . Retrieved Components . | . . . . Parts Scanalyzed . | . . . . Part Schematics Acquired . | . . . . Parts Damaged . | . . . . Bothacking | -11 -10 -9 -8 ------------ Run | Jun Mat Mat Mat Used RIF Installer . | . . . . Robots Hacked . | . . . . Non-combat . | . . . . Combat . | . . . . Robot Hacks Applied . | . . . . Relay Couplers Released . | . . . . Fabnet Peak Effective % . | . . . . Robots Rewired . | . . . . Allies Hacked . | . . . . Hacks Repelled . | . . . . Allies | -11 -10 -9 -8 -------- Run | Jun Mat Mat Mat Total Allies . | . . . . Largest Group . | . . . . Highest-Rated Group . | . . . . Highest-Rated Ally . | . . . . Total Orders . | . . . . Ally Attacks . | . . . . Total Damage . | . . . . Kills . | . . . . Allies Corrupted . | . . . . Allies Melted . | . . . . Intel | -11 -10 -9 -8 ------- Run | Jun Mat Mat Mat Robot Analysis Total . | . . . . Derelict Logs Recovered . | . . . . Drone Launches . | . . . . Drone Recoveries . | . . . . Exploration | -11 -10 -9 -8 ------------- Run | Jun Mat Mat Mat Turns Passed 2179 | 143 636 846 554 Spaces Moved 1268 | 111 436 431 290 Core 42 | 37 . . 5 Treads 4 | . . . 4 Legs 850 | 39 436 375 . Wheels 372 | 35 . 56 281 Hover . | . . . . Flight . | . . . . Fastest Speed 50 | 50 120 105 90 Average Speed 128 | 114 131 151 96 Slowest Speed 300 | 190 260 260 300 Overloaded Moves . | . . . . Propulsion Burnouts . | . . . . Robots Hopped . | . . . . Cave-ins Triggered . | . . . . Exploration Rate (%) 38 | 6 65 48 33 Regions Visited 3 Branch Regions . Pre-discovered Areas . | . . . . Known Exits Taken . | . . . . Unknown Exits Taken 3 | 1 1 1 . Scrap Searched . | . . . . Spaces Dug . | . . . . Terrain Destroyed 24 | . 7 . 17 Melee . | . . . . Projectile 6 | . . . 6 AOE 18 | . 7 . 11 Terrain Rammed . | . . . . Walls Destroyed . | . . . . Machines Disabled . | . . . . Actions | -11 -10 -9 -8 --------- Run | Jun Mat Mat Mat Total 1563 | 128 478 543 414 Wait 13 | . 3 10 . Move 1265 | 110 435 430 290 Hop . | . . . . Pick Up 38 | 8 7 14 9 Fast Attach 11 | . 3 3 5 Attach 32 | 7 3 13 9 Detach 21 | 1 5 12 3 Swap 15 | . 2 5 8 Drop 30 | 1 6 14 9 Fire 136 | . 14 41 81 Melee . | . . . . Ram 1 | 1 . . . Kick . | . . . . Crush . | . . . . Escape Stasis . | . . . . Rewire 1 | . . 1 . Trap . | . . . . Miscellaneous . | . . . . Route ------- -11/Junkyard -10/Materials (discovered 3 exits: *Mat x2 / [*Min]) -9/Materials (discovered 4 exits: *Mat / [*Min] / [*Sto x2]) -8/Materials (discovered 2 exits: [*Fac x2]) History --------- Turn | Location | Event 22 | -11/Junkyard | Discovered new exit (range 16) 144 | -11/Junkyard | Entered Materials 231 | -10/Materials | Discovered new exit (range 15) 316 | -10/Materials | Build established: Mutant 403 | -10/Materials | Discovered new exit (range 3) 542 | -10/Materials | Discovered new exit (range 5) 780 | -10/Materials | Entered another Materials area 780 | -9/Materials | Evolved 2 slots: Power x1, Weapon x1 993 | -9/Materials | Discovered new exit (range 15) 1172 | -9/Materials | Discovered new exit (range 16) 1409 | -9/Materials | Discovered new exit (range 16) 1433 | -9/Materials | Build established: Gunner 1542 | -9/Materials | Discovered new exit (range 15) 1626 | -9/Materials | Entered another Materials area 1626 | -8/Materials | Evolved 2 slots: Propulsion x1, Utility x1 1843 | -8/Materials | Discovered new exit (range 3) 1947 | -8/Materials | Destroyed 8 combat bots 1960 | -8/Materials | Garrison activated, responded to threat 2019 | -8/Materials | Destroyed 9 combat bots 2086 | -8/Materials | Discovered new exit (range 15) 2147 | -8/Materials | Core integrity fell below 50% 2165 | -8/Materials | Core integrity fell below 20% 2180 | -8/Materials | Destroyed by G-47 Trooper with Particle Gun Last Messages --------------- 02144_ T-07 Excavator is excavating. 02145_ Penetrated by Slug. 02145_ Critical hit (Burn: +37). 02147_ Sml. Storage Unit destroyed. 02148_ G-47 Trooper destroyed. 02148_ T-07 Excavator is excavating. 02149_ Critical hit (Burn: +37). 02151_ G-47 Trooper destroyed. 02156_ Critical hit (Burn: +37). 02157_ Penetrated by Slug. 02161_ W-25 Informer sends out distress signal. 02161_ Slug penetrates Wall. 02163_ Acquired 54 matter. 02166_ Hvy. Ion Cannon destroyed. 02167_ Penetrated by Slug. 02168_ Acquired Arm. Treads. 02170_ Penetrated by Slug. 02173_ Hvy. Ion Cannon destroyed. 02173_ Imp. Heat Sink destroyed. 02178_ The unstable cave ceiling collapses. Map ----- +----------------------------------------------------+ | ??# # #??????????????????????????????? | | ??# # #??????????????????????????????? | | ??# # #??????????????????????????????? | | ??# # = #??????????????????????????????? | | ??# # #??????????????????????????????? | | ### / #??????????????????????????????? | | # #??????????????????????????????? | | # #??????????????????????????????? | | ##########?####?????????????????????????? | | ### #?????????? ?????????????????????????? | | ??# #?????????? ?????????????????????????? | | ??# #?????????? =% ?????????????????????????? | | ??# #?????????? ?????????????????????????? | | ??# #??????????# #????######???????????????? | | ??# #??????????# #??? #???????????????? | | ### #??????????# #??? #???????????????? | | #??????????# #???" #???????????????? | | #??????????# #???" ! #???????????????? | | #??????????# #???" #???????????????? | | """ #??????????# #??? #???????????????? | | """" #??????????# #??? #???? ??????????? | | """ #??????????# #??? #??? ??????????? | | ############ ;####;+#;#### ;###????????? | | ! #????????? | | w x < #????????? | | ! @[!! #????????? | | ####################;; ! [!%## ##???????????? | | ???????????????????# [!%g%=!; #????????????? | | ???????????????????# ;] !!!!## #????????????? | | ??????????????????# #] !!!!#?? +????????????? | | ??????????????????###########????#????????????? | | ????????????????????# ##??????????????????????? | | ????????????????????##????????????????????????? | | ??????????????????????????????????????????????? | | ??????????????????????????????????????????????? | | ??????????????????????????????????????????????? | | ??????????????????????????????????????????????? | | ??????????????????????????????????????????????? | | ??????????????????????????????????????????????? | | ??????????????????????????????????????????????? | | ??????????????????????????????????????????????? | | ??????????????????????????????????????????????? | | ??????????????????????????????????????????????? | | ??????????????????????????????????????????????? | | ??????????????????????????????????????????????? | | ??????????????????????????????????????????????? | | ??????????????????????????????????????????????? | | ??????????????????????????????????????????????? | | ??????????????????????????????????????????????? | | ??????????????????????????????????????????????? | +----------------------------------------------------+ Best States ------------- Heat Dissipation 45 Energy Generation 17 Energy Capacity 490 Matter Stores 300 Matter Capacity 300 Sight Range 16 Robot Scan Range 14 Terrain Scan Density 10 Armor Coverage 150 Utility Shielding 33 Evasion (%) 55 Recoil Reduction 1 Item Schematics ----------------- None Robot Schematics ------------------ None Fabricated ------------ Nothing Alien Tech Used ----------------- None Achievements -------------- None Challenges ------------ None Game ------ Seed ThrusterNodeNetwork Manual? 0 Play Time 01:04:31 Cumulative 24.5 hours Start 2023.11.07 @ 21:50:19 End 2023.11.11 @ 23:02:24 Sessions 3 Manual Loads 0 Difficulty Rogue Special Mode None Game No. 8 Rogue 7 Adventurer 1 Explorer 0 Win Type - Total 0 Types 0/0/0/0/0/0/0/0/0 Lore% 2 Gallery% 18 Achievement% 15 Wizard Run 0 Options --------- ASCII 0 Keyboard 1 Movement Numpad Keybinds 0 Fullscreen 1 Font 24/Smallcaps Map View 76x50 Tactical HUD 1 Map Filters NONE Filters NONE Steam 1 RUN: ceab86e1-5ea6-4542-a341-0a5f8213fa83